Workbook

Sheet ka1_turnover
A1: Parameter | B1: Value | C1: Units | D1: Description
B2: Parameter
A3: CL | B3: 9 | C3: L/h | D3: Clearance
A4: V | B4: 500 | C4: L | D4: Volume of distribution
A5: ThalfAbs | B5: 2 | C5: h | D5: Absorption half-life
A6: Emax | B6: 100 | C6: unit | D6: Maximum drug effect
A7: C50 | B7: 5 | C7: mcg/L | D7: Drug conc at 50% of Emax
A8: R0 | B8: 10 | C8: unit | D8: Total receptor amount
A9: Kd | B9: 10 | C9: mcg/L | D9: Equilibrium binding constant
A10: ThalfOff | B10: 5 | C10: h | D10: Binding dissociation half-life
B12: Dosing
A13: Dose | B13: 1 | C13: mg | D13: Drug dose at time=0
B15: Calculated
A16: Ke | B16: =IF(Kd<=_C50,_C50,_C50*R0/(Kd-_C50)) -> 10 | C16: unit | D16: Bound receptor (AR) amount at 50% of Emax
B18: Graph
A19: Tmax | B19: 168 | C19: h | D19: Time course maximum
A28: Time course of receptor binding and operational model of agonism; AR=agonist-receptor complex (bound receptor)
A29: Black JW, Leff P. Operational models of pharmacological agonism. Proc R Soc Lond B Biol Sci. 1983;220(1219):141-62.

Sheet Calc
A1: Time | B1: Gut | C1: Central | D1: AR | E1: Conc | F1: Effect | H1: FuncName | I1: KA1_Binding | K1: Nick Holford | L1: n.holford@auckland.ac.nz | O1: 2021-03-02
A2: 0 | B2: =ODE(FuncName,Initial,Time,Parameter,Eps,Step,Maxits) -> 1000 | C2: 0 | D2: 0 | E2: =central/ka1_turnover!V -> 0 | F2: =ka1_turnover!Emax*AR/(ka1_turnover!Ke+AR) -> 0 | H2: Eps | I2: 1e-09 | K2: Protection password | M2: pkpdrx
A3: =+A2+Tmax/MaxTimeSteps -> 0.84 | B3: 747.4246243 | C3: 250.5836789 | D3: 0.02944863611 | E3: =central/ka1_turnover!V -> 0.5011673577 | F3: =ka1_turnover!Emax*AR/(ka1_turnover!Ke+AR) -> 0.2936216853 | H3: Step | I3: 0.01 | J3: h
A4: 1.68 | B4: 558.643569 | C4: 434.1157654 | D4: 0.1024089779 | E4: =central/ka1_turnover!V -> 0.8682315307 | F4: =ka1_turnover!Emax*AR/(ka1_turnover!Ke+AR) -> 1.013708494 | H4: Maxits | I4: 10000
A5: 2.52 | B5: 417.5439597 | C5: 567.5882691 | D5: 0.2006331674 | E5: =central/ka1_turnover!V -> 1.135176538 | F5: =ka1_turnover!Emax*AR/(ka1_turnover!Ke+AR) -> 1.966869743
A6: 3.36 | B6: 312.0826372 | C6: 663.7005896 | D6: 0.3112101156 | E6: =central/ka1_turnover!V -> 1.327401179 | F6: =ka1_turnover!Emax*AR/(ka1_turnover!Ke+AR) -> 3.018172573
A7: 4.2 | B7: 233.2582479 | C7: 731.9437369 | D7: 0.4252974601 | E7: =central/ka1_turnover!V -> 1.463887474 | F7: =ka1_turnover!Emax*AR/(ka1_turnover!Ke+AR) -> 4.079475543
A8: 5.04 | B8: 174.3429583 | C8: 779.4107038 | D8: 0.5370607491 | E8: =central/ka1_turnover!V -> 1.558821408 | F8: =ka1_turnover!Emax*AR/(ka1_turnover!Ke+AR) -> 5.096874374 | I8: Initial
A9: 5.88 | B9: 130.3082201 | C9: 811.4021588 | D9: 0.642835567 | E9: =central/ka1_turnover!V -> 1.622804318 | F9: =ka1_turnover!Emax*AR/(ka1_turnover!Ke+AR) -> 6.040077975 | H9: Gut | I9: =ka1_turnover!Dose*1000 -> 1000 | J9: mcg/L
A10: 6.72 | B10: 97.39557246 | C10: 831.8791547 | D10: 0.7404897682 | E10: =central/ka1_turnover!V -> 1.663758309 | F10: =ka1_turnover!Emax*AR/(ka1_turnover!Ke+AR) -> 6.89437618 | H10: Central | I10: 0 | J10: mcg/L
A11: 7.56 | B11: 72.79584915 | C11: 843.8014951 | D11: 0.8289503596 | E11: =central/ka1_turnover!V -> 1.68760299 | F11: =ka1_turnover!Emax*AR/(ka1_turnover!Ke+AR) -> 7.654946528 | H11: AR | I11: 0 | J11: unit
A12: 8.4 | B12: 54.40941021 | C12: 849.3806365 | D12: 0.9078592201 | E12: =central/ka1_turnover!V -> 1.698761273 | F12: =ka1_turnover!Emax*AR/(ka1_turnover!Ke+AR) -> 8.322982555
A13: 9.24 | B13: 40.66693298 | C13: 850.2687142 | D13: 0.977326468 | E13: =central/ka1_turnover!V -> 1.700537428 | F13: =ka1_turnover!Emax*AR/(ka1_turnover!Ke+AR) -> 8.903137488 | H13: MaxTimeSteps | I13: 200
A14: 10.08 | B14: 30.39546711 | C14: 847.6998248 | D14: 1.037756248 | E14: =central/ka1_turnover!V -> 1.69539965 | F14: =ka1_turnover!Emax*AR/(ka1_turnover!Ke+AR) -> 9.401876837
A15: 10.92 | B15: 22.71832058 | C15: 842.5956231 | D15: 1.089725393 | E15: =central/ka1_turnover!V -> 1.685191246 | F15: =ka1_turnover!Emax*AR/(ka1_turnover!Ke+AR) -> 9.826441634
A16: 11.76 | B16: 16.98023223 | C16: 835.6442488 | D16: 1.133900233 | E16: =central/ka1_turnover!V -> 1.671288498 | F16: =ka1_turnover!Emax*AR/(ka1_turnover!Ke+AR) -> 10.18421406
A17: 12.6 | B17: 12.69144369 | C17: 827.3593173 | D17: 1.17098065 | E17: =central/ka1_turnover!V -> 1.654718635 | F17: =ka1_turnover!Emax*AR/(ka1_turnover!Ke+AR) -> 10.48234427
A18: 13.44 | B18: 9.485897534 | C18: 818.1240114 | D18: 1.201663417 | E18: =central/ka1_turnover!V -> 1.636248023 | F18: =ka1_turnover!Emax*AR/(ka1_turnover!Ke+AR) -> 10.7275444
A19: 14.28 | B19: 7.0899934 | C19: 808.2240353 | D19: 1.226619057 | E19: =central/ka1_turnover!V -> 1.616448071 | F19: =ka1_turnover!Emax*AR/(ka1_turnover!Ke+AR) -> 10.92598806
A20: 15.12 | B20: 5.299235654 | C20: 797.8722465 | D20: 1.246478089 | E20: =central/ka1_turnover!V -> 1.595744493 | F20: =ka1_turnover!Emax*AR/(ka1_turnover!Ke+AR) -> 11.08327495
A21: 15.96 | B21: 3.960779217 | C21: 787.2270647 | D21: 1.261823691 | E21: =central/ka1_turnover!V -> 1.574454129 | F21: =ka1_turnover!Emax*AR/(ka1_turnover!Ke+AR) -> 11.20443478
A22: 16.8 | B22: 2.960383919 | C22: 776.406232 | D22: 1.273188703 | E22: =central/ka1_turnover!V -> 1.552812464 | F22: =ka1_turnover!Emax*AR/(ka1_turnover!Ke+AR) -> 11.29395362
A23: 17.64 | B23: 2.212663838 | C23: 765.4970969 | D23: 1.28105547 | E23: =central/ka1_turnover!V -> 1.530994194 | F23: =ka1_turnover!Emax*AR/(ka1_turnover!Ke+AR) -> 11.35581217
A24: 18.48 | B24: 1.653799438 | C24: 754.5643007 | D24: 1.285857498 | E24: =central/ka1_turnover!V -> 1.509128601 | F24: =ka1_turnover!Emax*AR/(ka1_turnover!Ke+AR) -> 11.39352945
A25: 19.32 | B25: 1.236090423 | C25: 743.6555227 | D25: 1.287982204 | E25: =central/ka1_turnover!V -> 1.487311045 | F25: =ka1_turnover!Emax*AR/(ka1_turnover!Ke+AR) -> 11.41020761
A26: 20.16 | B26: 0.9238844202 | C26: 732.8057737 | D26: 1.287774264 | E26: =central/ka1_turnover!V -> 1.465611547 | F26: =ka1_turnover!Emax*AR/(ka1_turnover!Ke+AR) -> 11.40857563
A27: 21 | B27: 0.6905339656 | C27: 722.0406051 | D27: 1.285539221 | E27: =central/ka1_turnover!V -> 1.44408121 | F27: =ka1_turnover!Emax*AR/(ka1_turnover!Ke+AR) -> 11.39103056
A28: 21.84 | B28: 0.5161220897 | C28: 711.3785077 | D28: 1.281547138 | E28: =central/ka1_turnover!V -> 1.422757015 | F28: =ka1_turnover!Emax*AR/(ka1_turnover!Ke+AR) -> 11.35967542
A29: 22.68 | B29: 0.3857623589 | C29: 700.8327039 | D29: 1.276036146 | E29: =central/ka1_turnover!V -> 1.401665408 | F29: =ka1_turnover!Emax*AR/(ka1_turnover!Ke+AR) -> 11.31635381
A30: 23.52 | B30: 0.2883282861 | C30: 690.4124871 | D30: 1.269215816 | E30: =central/ka1_turnover!V -> 1.380824974 | F30: =ka1_turnover!Emax*AR/(ka1_turnover!Ke+AR) -> 11.26268089
A31: 24.36 | B31: 0.2155036608 | C31: 680.1242236 | D31: 1.261270279 | E31: =central/ka1_turnover!V -> 1.360248447 | F31: =ka1_turnover!Emax*AR/(ka1_turnover!Ke+AR) -> 11.20007111
A32: 25.2 | B32: 0.1610727426 | C32: 669.9720997 | D32: 1.252361103 | E32: =central/ka1_turnover!V -> 1.339944199 | F32: =ka1_turnover!Emax*AR/(ka1_turnover!Ke+AR) -> 11.12976283
A33: 26.04 | B33: 0.1203897341 | C33: 659.9586819 | D33: 1.242629897 | E33: =central/ka1_turnover!V -> 1.319917364 | F33: =ka1_turnover!Emax*AR/(ka1_turnover!Ke+AR) -> 11.05284003
A34: 26.88 | B34: 0.08998225167 | C34: 650.0853336 | D34: 1.23220066 | E34: =central/ka1_turnover!V -> 1.300170667 | F34: =ka1_turnover!Emax*AR/(ka1_turnover!Ke+AR) -> 10.97025149
A35: =+A34+Tmax/MaxTimeSteps -> 27.72 | B35: 0.06725495058 | C35: 640.3525278 | D35: 1.221181883 | E35: =central/ka1_turnover!V -> 1.280705056 | F35: =ka1_turnover!Emax*AR/(ka1_turnover!Ke+AR) -> 10.88282764
A36: 28.56 | B36: 0.05026800609 | C36: 630.7600799 | D36: 1.209668423 | E36: =central/ka1_turnover!V -> 1.26152016 | F36: =ka1_turnover!Emax*AR/(ka1_turnover!Ke+AR) -> 10.79129531
A37: 29.4 | B37: 0.03757154551 | C37: 621.3073222 | D37: 1.197743164 | E37: =central/ka1_turnover!V -> 1.242614644 | F37: =ka1_turnover!Emax*AR/(ka1_turnover!Ke+AR) -> 10.69629073
A38: 30.24 | B38: 0.02808189821 | C38: 611.9932337 | D38: 1.185478488 | E38: =central/ka1_turnover!V -> 1.223986467 | F38: =ka1_turnover!Emax*AR/(ka1_turnover!Ke+AR) -> 10.59837082
A39: 31.08 | B39: 0.02098910216 | C39: 602.8165368 | D39: 1.172937574 | E39: =central/ka1_turnover!V -> 1.205633074 | F39: =ka1_turnover!Emax*AR/(ka1_turnover!Ke+AR) -> 10.49802316
A40: 31.92 | B40: 0.01568777173 | C40: 593.7757706 | D40: 1.160175538 | E40: =central/ka1_turnover!V -> 1.187551541 | F40: =ka1_turnover!Emax*AR/(ka1_turnover!Ke+AR) -> 10.39567464
A41: 32.76 | B41: 0.01172542683 | C41: 584.8693441 | D41: 1.147240439 | E41: =central/ka1_turnover!V -> 1.169738688 | F41: =ka1_turnover!Emax*AR/(ka1_turnover!Ke+AR) -> 10.29169906
A42: 33.6 | B42: 0.00876387268 | C42: 576.0955769 | D42: 1.13417416 | E42: =central/ka1_turnover!V -> 1.152191154 | F42: =ka1_turnover!Emax*AR/(ka1_turnover!Ke+AR) -> 10.18642374
A43: 34.44 | B43: 0.006550334175 | C43: 567.4527291 | D43: 1.121013181 | E43: =central/ka1_turnover!V -> 1.134905458 | F43: =ka1_turnover!Emax*AR/(ka1_turnover!Ke+AR) -> 10.08013535
A44: 35.28 | B44: 0.004895880986 | C44: 558.9390235 | D44: 1.107789257 | E44: =central/ka1_turnover!V -> 1.117878047 | F44: =ka1_turnover!Emax*AR/(ka1_turnover!Ke+AR) -> 9.973084936
A45: 36.12 | B45: 0.003659301977 | C45: 550.5526623 | D45: 1.094530009 | E45: =central/ka1_turnover!V -> 1.101105325 | F45: =ka1_turnover!Emax*AR/(ka1_turnover!Ke+AR) -> 9.865492348
A46: 36.96 | B46: 0.002735052324 | C46: 542.2918391 | D46: 1.081259445 | E46: =central/ka1_turnover!V -> 1.084583678 | F46: =ka1_turnover!Emax*AR/(ka1_turnover!Ke+AR) -> 9.757550129
A47: 37.8 | B47: 0.002044245448 | C47: 534.1547485 | D47: 1.067998414 | E47: =central/ka1_turnover!V -> 1.068309497 | F47: =ka1_turnover!Emax*AR/(ka1_turnover!Ke+AR) -> 9.649426876
A48: 38.64 | B48: 0.001527919309 | C48: 526.1395921 | D48: 1.054764998 | E48: =central/ka1_turnover!V -> 1.052279184 | F48: =ka1_turnover!Emax*AR/(ka1_turnover!Ke+AR) -> 9.5412702
A49: 39.48 | B49: 0.001142004514 | C49: 518.2445839 | D49: 1.041574868 | E49: =central/ka1_turnover!V -> 1.036489168 | F49: =ka1_turnover!Emax*AR/(ka1_turnover!Ke+AR) -> 9.433209308
A50: 40.32 | B50: 0.0008535622373 | C50: 510.4679536 | D50: 1.028441577 | E50: =central/ka1_turnover!V -> 1.020935907 | F50: =ka1_turnover!Emax*AR/(ka1_turnover!Ke+AR) -> 9.325357262
A51: 41.16 | B51: 0.0006379733913 | C51: 502.8079492 | D51: 1.015376833 | E51: =central/ka1_turnover!V -> 1.005615898 | F51: =ka1_turnover!Emax*AR/(ka1_turnover!Ke+AR) -> 9.217812956
A52: 42 | B52: 0.00047683699 | C52: 495.2628389 | D52: 1.002390724 | E52: =central/ka1_turnover!V -> 0.9905256778 | F52: =ka1_turnover!Emax*AR/(ka1_turnover!Ke+AR) -> 9.110662846
A53: 42.84 | B53: 0.000356399684 | C53: 487.8309121 | D53: 0.9894919258 | E53: =central/ka1_turnover!V -> 0.9756618243 | F53: =ka1_turnover!Emax*AR/(ka1_turnover!Ke+AR) -> 9.003982463
A54: 43.68 | B54: 0.0002663818819 | C54: 480.5104806 | D54: 0.9766878763 | E54: =central/ka1_turnover!V -> 0.9610209613 | F54: =ka1_turnover!Emax*AR/(ka1_turnover!Ke+AR) -> 8.897837738
A55: 44.52 | B55: 0.0001991003645 | C55: 473.299879 | D55: 0.96398493 | E55: =central/ka1_turnover!V -> 0.9465997579 | F55: =ka1_turnover!Emax*AR/(ka1_turnover!Ke+AR) -> 8.792286164
A56: 45.36 | B56: 0.0001488125051 | C56: 466.1974646 | D56: 0.9513884941 | E56: =central/ka1_turnover!V -> 0.9323949292 | F56: =ka1_turnover!Emax*AR/(ka1_turnover!Ke+AR) -> 8.687377811
A57: 46.2 | B57: 0.0001112261232 | C57: 459.2016184 | D57: 0.9389031456 | E57: =central/ka1_turnover!V -> 0.9184032368 | F57: =ka1_turnover!Emax*AR/(ka1_turnover!Ke+AR) -> 8.583156219
A58: 47.04 | B58: 8.313313768e-05 | C58: 452.3107443 | D58: 0.9265327359 | E58: =central/ka1_turnover!V -> 0.9046214886 | F58: =ka1_turnover!Emax*AR/(ka1_turnover!Ke+AR) -> 8.479659177
A59: 47.88 | B59: 6.213574999e-05 | C59: 445.5232695 | D59: 0.91428048 | E59: =central/ka1_turnover!V -> 0.8910465389 | F59: =ka1_turnover!Emax*AR/(ka1_turnover!Ke+AR) -> 8.37691941
A60: 48.72 | B60: 4.644178645e-05 | C60: 438.837644 | D60: 0.9021490365 | E60: =central/ka1_turnover!V -> 0.877675288 | F60: =ka1_turnover!Emax*AR/(ka1_turnover!Ke+AR) -> 8.274965179
A61: 49.56 | B61: 3.471173244e-05 | C61: 432.2523409 | D61: 0.8901405764 | E61: =central/ka1_turnover!V -> 0.8645046818 | F61: =ka1_turnover!Emax*AR/(ka1_turnover!Ke+AR) -> 8.173820808
A62: 50.4 | B62: 2.594440182e-05 | C62: 425.7658557 | D62: 0.8782568438 | E62: =central/ka1_turnover!V -> 0.8515317113 | F62: =ka1_turnover!Emax*AR/(ka1_turnover!Ke+AR) -> 8.073507147
A63: 51.24 | B63: 1.939148347e-05 | C63: 419.3767062 | D63: 0.8664992088 | E63: =central/ka1_turnover!V -> 0.8387534124 | F63: =ka1_turnover!Emax*AR/(ka1_turnover!Ke+AR) -> 7.974041981
A64: 52.08 | B64: 1.449367127e-05 | C64: 413.0834323 | D64: 0.8548687141 | E64: =central/ka1_turnover!V -> 0.8261668646 | F64: =ka1_turnover!Emax*AR/(ka1_turnover!Ke+AR) -> 7.875440381
A65: 52.92 | B65: 1.083292607e-05 | C65: 406.8845958 | D65: 0.8433661157 | E65: =central/ka1_turnover!V -> 0.8137691916 | F65: =ka1_turnover!Emax*AR/(ka1_turnover!Ke+AR) -> 7.777715026
A66: 53.76 | B66: 8.096795147e-06 | C66: 400.7787797 | D66: 0.8319919185 | E66: =central/ka1_turnover!V -> 0.8015575594 | F66: =ka1_turnover!Emax*AR/(ka1_turnover!Ke+AR) -> 7.68087647
A67: =+A66+Tmax/MaxTimeSteps -> 54.6 | B67: 6.051743661e-06 | C67: 394.7645885 | D67: 0.8207464077 | E67: =central/ka1_turnover!V -> 0.789529177 | F67: =ka1_turnover!Emax*AR/(ka1_turnover!Ke+AR) -> 7.584933394
A68: 55.44 | B68: 4.523221926e-06 | C68: 388.8406473 | D68: 0.809629676 | E68: =central/ka1_turnover!V -> 0.7776812946 | F68: =ka1_turnover!Emax*AR/(ka1_turnover!Ke+AR) -> 7.489892811
A69: 56.28 | B69: 3.38076722e-06 | C69: 383.0056019 | D69: 0.7986416479 | E69: =central/ka1_turnover!V -> 0.7660112039 | F69: =ka1_turnover!Emax*AR/(ka1_turnover!Ke+AR) -> 7.395760263
A70: 57.12 | B70: 2.526868498e-06 | C70: 377.2581186 | D70: 0.7877821005 | E70: =central/ka1_turnover!V -> 0.7545162371 | F70: =ka1_turnover!Emax*AR/(ka1_turnover!Ke+AR) -> 7.302539977
A71: 57.96 | B71: 1.88864361e-06 | C71: 371.5968832 | D71: 0.7770506823 | E71: =central/ka1_turnover!V -> 0.7431937665 | F71: =ka1_turnover!Emax*AR/(ka1_turnover!Ke+AR) -> 7.210235019
A72: 58.8 | B72: 1.411618645e-06 | C72: 366.0206018 | D72: 0.7664469294 | E72: =central/ka1_turnover!V -> 0.7320412035 | F72: =ka1_turnover!Emax*AR/(ka1_turnover!Ke+AR) -> 7.118847419
A73: 59.64 | B73: 1.055078464e-06 | C73: 360.5279993 | D73: 0.7559702795 | E73: =central/ka1_turnover!V -> 0.7210559987 | F73: =ka1_turnover!Emax*AR/(ka1_turnover!Ke+AR) -> 7.028378286
A74: 60.48 | B74: 7.885915711e-07 | C74: 355.1178203 | D74: 0.7456200852 | E74: =central/ka1_turnover!V -> 0.7102356406 | F74: =ka1_turnover!Emax*AR/(ka1_turnover!Ke+AR) -> 6.938827907
A75: 61.32 | B75: 5.894127189e-07 | C75: 349.7888277 | D75: 0.7353956241 | E75: =central/ka1_turnover!V -> 0.6995776555 | F75: =ka1_turnover!Emax*AR/(ka1_turnover!Ke+AR) -> 6.850195837
A76: 62.16 | B76: 4.405415501e-07 | C76: 344.5398034 | D76: 0.7252961091 | E76: =central/ka1_turnover!V -> 0.6890796069 | F76: =ka1_turnover!Emax*AR/(ka1_turnover!Ke+AR) -> 6.762480977
A77: 63 | B77: 3.292715803e-07 | C77: 339.3695474 | D77: 0.715320697 | E77: =central/ka1_turnover!V -> 0.6787390947 | F77: =ka1_turnover!Emax*AR/(ka1_turnover!Ke+AR) -> 6.675681645
A78: 63.84 | B78: 2.461056705e-07 | C78: 334.2768775 | D78: 0.7054684955 | E78: =central/ka1_turnover!V -> 0.668553755 | F78: =ka1_turnover!Emax*AR/(ka1_turnover!Ke+AR) -> 6.589795634
A79: 64.68 | B79: 1.839454259e-07 | C79: 329.2606296 | D79: 0.6957385705 | E79: =central/ka1_turnover!V -> 0.6585212591 | F79: =ka1_turnover!Emax*AR/(ka1_turnover!Ke+AR) -> 6.50482027
A80: 65.52 | B80: 1.374853315e-07 | C80: 324.3196568 | D80: 0.6861299515 | E80: =central/ka1_turnover!V -> 0.6486393136 | F80: =ka1_turnover!Emax*AR/(ka1_turnover!Ke+AR) -> 6.420752458
A81: 66.36 | B81: 1.027599153e-07 | C81: 319.4528295 | D81: 0.6766416367 | E81: =central/ka1_turnover!V -> 0.6389056591 | F81: =ka1_turnover!Emax*AR/(ka1_turnover!Ke+AR) -> 6.337588726
A82: 67.2 | B82: 7.680528589e-08 | C82: 314.6590352 | D82: 0.6672725979 | E82: =central/ka1_turnover!V -> 0.6293180704 | F82: =ka1_turnover!Emax*AR/(ka1_turnover!Ke+AR) -> 6.255325265
A83: 68.04 | B83: 5.740615806e-08 | C83: 309.9371778 | D83: 0.6580217843 | E83: =central/ka1_turnover!V -> 0.6198743556 | F83: =ka1_turnover!Emax*AR/(ka1_turnover!Ke+AR) -> 6.17395796
A84: 68.88 | B84: 4.290677322e-08 | C84: 305.2861778 | D84: 0.6488881259 | E84: =central/ka1_turnover!V -> 0.6105723557 | F84: =ka1_turnover!Emax*AR/(ka1_turnover!Ke+AR) -> 6.093482421
A85: 69.72 | B85: 3.206957668e-08 | C85: 300.704972 | D85: 0.6398705371 | E85: =central/ka1_turnover!V -> 0.6014099441 | F85: =ka1_turnover!Emax*AR/(ka1_turnover!Ke+AR) -> 6.013894012
A86: 70.56 | B86: 2.396958968e-08 | C86: 296.192513 | D86: 0.6309679189 | E86: =central/ka1_turnover!V -> 0.5923850261 | F86: =ka1_turnover!Emax*AR/(ka1_turnover!Ke+AR) -> 5.935187875
A87: 71.4 | B87: 1.791546035e-08 | C87: 291.7477692 | D87: 0.6221791616 | E87: =central/ka1_turnover!V -> 0.5834955384 | F87: =ka1_turnover!Emax*AR/(ka1_turnover!Ke+AR) -> 5.857358948
A88: 72.24 | B88: 1.339045531e-08 | C88: 287.3697243 | D88: 0.6135031473 | E88: =central/ka1_turnover!V -> 0.5747394487 | F88: =ka1_turnover!Emax*AR/(ka1_turnover!Ke+AR) -> 5.780401991
A89: 73.08 | B89: 1.000835535e-08 | C89: 283.0573776 | D89: 0.6049387511 | E89: =central/ka1_turnover!V -> 0.5661147552 | F89: =ka1_turnover!Emax*AR/(ka1_turnover!Ke+AR) -> 5.704311598
A90: 73.92 | B90: 7.480490733e-09 | C90: 278.8097431 | D90: 0.5964848435 | E90: =central/ka1_turnover!V -> 0.5576194862 | F90: =ka1_turnover!Emax*AR/(ka1_turnover!Ke+AR) -> 5.629082213
A91: 74.76 | B91: 5.591102597e-09 | C91: 274.6258497 | D91: 0.5881402915 | E91: =central/ka1_turnover!V -> 0.5492516995 | F91: =ka1_turnover!Emax*AR/(ka1_turnover!Ke+AR) -> 5.554708148
A92: 75.6 | B92: 4.178927475e-09 | C92: 270.504741 | D92: 0.5799039602 | E92: =central/ka1_turnover!V -> 0.541009482 | F92: =ka1_turnover!Emax*AR/(ka1_turnover!Ke+AR) -> 5.481183595
A93: 76.44 | B93: 3.123433087e-09 | C93: 266.4454747 | D93: 0.5717747137 | E93: =central/ka1_turnover!V -> 0.5328909494 | F93: =ka1_turnover!Emax*AR/(ka1_turnover!Ke+AR) -> 5.408502633
A94: 77.28 | B94: 2.334530643e-09 | C94: 262.4471228 | D94: 0.5637514165 | E94: =central/ka1_turnover!V -> 0.5248942456 | F94: =ka1_turnover!Emax*AR/(ka1_turnover!Ke+AR) -> 5.336659244
A95: 78.12 | B95: 1.744885571e-09 | C95: 258.5087713 | D95: 0.5558329342 | E95: =central/ka1_turnover!V -> 0.5170175426 | F95: =ka1_turnover!Emax*AR/(ka1_turnover!Ke+AR) -> 5.265647322
A96: 78.96 | B96: 1.304170354e-09 | C96: 254.6295197 | D96: 0.5480181343 | E96: =central/ka1_turnover!V -> 0.5092590394 | F96: =ka1_turnover!Emax*AR/(ka1_turnover!Ke+AR) -> 5.195460676
A97: 79.8 | B97: 9.747689708e-10 | C97: 250.8084812 | D97: 0.5403058873 | E97: =central/ka1_turnover!V -> 0.5016169624 | F97: =ka1_turnover!Emax*AR/(ka1_turnover!Ke+AR) -> 5.126093048
A98: 80.64 | B98: 7.285662824e-10 | C98: 247.0447823 | D98: 0.5326950671 | E98: =central/ka1_turnover!V -> 0.4940895645 | F98: =ka1_turnover!Emax*AR/(ka1_turnover!Ke+AR) -> 5.05753811
A99: =+A98+Tmax/MaxTimeSteps -> 81.48 | B99: 5.44548343e-10 | C99: 243.3375624 | D99: 0.5251845514 | E99: =central/ka1_turnover!V -> 0.4866751247 | F99: =ka1_turnover!Emax*AR/(ka1_turnover!Ke+AR) -> 4.989789479
A100: 82.32 | B100: 4.070088132e-10 | C100: 239.685974 | D100: 0.5177732229 | E100: =central/ka1_turnover!V -> 0.479371948 | F100: =ka1_turnover!Emax*AR/(ka1_turnover!Ke+AR) -> 4.922840718
A101: 83.16 | B101: 3.042083887e-10 | C101: 236.0891823 | D101: 0.5104599688 | E101: =central/ka1_turnover!V -> 0.4721783647 | F101: =ka1_turnover!Emax*AR/(ka1_turnover!Ke+AR) -> 4.856685344
A102: 84 | B102: 2.273728252e-10 | C102: 232.5463651 | D102: 0.5032436824 | E102: =central/ka1_turnover!V -> 0.4650927302 | F102: =ka1_turnover!Emax*AR/(ka1_turnover!Ke+AR) -> 4.791316832
A103: 84.84 | B103: 1.699440369e-10 | C103: 229.0567123 | D103: 0.4961232624 | E103: =central/ka1_turnover!V -> 0.4581134246 | F103: =ka1_turnover!Emax*AR/(ka1_turnover!Ke+AR) -> 4.726728622
A104: 85.68 | B104: 1.270203494e-10 | C104: 225.6194262 | D104: 0.4890976139 | E104: =central/ka1_turnover!V -> 0.4512388524 | F104: =ka1_turnover!Emax*AR/(ka1_turnover!Ke+AR) -> 4.662914122
A105: 86.52 | B105: 9.493813048e-11 | C105: 222.2337209 | D105: 0.4821656484 | E105: =central/ka1_turnover!V -> 0.4444674418 | F105: =ka1_turnover!Emax*AR/(ka1_turnover!Ke+AR) -> 4.599866712
A106: 87.36 | B106: 7.09590917e-11 | C106: 218.8988224 | D106: 0.4753262843 | E106: =central/ka1_turnover!V -> 0.4377976448 | F106: =ka1_turnover!Emax*AR/(ka1_turnover!Ke+AR) -> 4.537579751
A107: 88.2 | B107: 5.303656886e-11 | C107: 215.6139683 | D107: 0.468578447 | E107: =central/ka1_turnover!V -> 0.4312279366 | F107: =ka1_turnover!Emax*AR/(ka1_turnover!Ke+AR) -> 4.476046575
A108: 89.04 | B108: 3.964083487e-11 | C108: 212.3784076 | D108: 0.4619210692 | E108: =central/ka1_turnover!V -> 0.4247568151 | F108: =ka1_turnover!Emax*AR/(ka1_turnover!Ke+AR) -> 4.415260507
A109: 89.88 | B109: 2.96285341e-11 | C109: 209.1914005 | D109: 0.4553530909 | E109: =central/ka1_turnover!V -> 0.4183828011 | F109: =ka1_turnover!Emax*AR/(ka1_turnover!Ke+AR) -> 4.355214854
A110: 90.72 | B110: 2.214509447e-11 | C110: 206.0522186 | D110: 0.4488734597 | E110: =central/ka1_turnover!V -> 0.4121044371 | F110: =ka1_turnover!Emax*AR/(ka1_turnover!Ke+AR) -> 4.295902917
A111: 91.56 | B111: 1.65517878e-11 | C111: 202.960144 | D111: 0.4424811313 | E111: =central/ka1_turnover!V -> 0.405920288 | F111: =ka1_turnover!Emax*AR/(ka1_turnover!Ke+AR) -> 4.237317987
A112: 92.4 | B112: 1.237121294e-11 | C112: 199.91447 | D112: 0.436175069 | E112: =central/ka1_turnover!V -> 0.3998289399 | F112: =ka1_turnover!Emax*AR/(ka1_turnover!Ke+AR) -> 4.179453354
A113: 93.24 | B113: 9.246548555e-12 | C113: 196.9145001 | D113: 0.4299542441 | E113: =central/ka1_turnover!V -> 0.3938290002 | F113: =ka1_turnover!Emax*AR/(ka1_turnover!Ke+AR) -> 4.122302304
A114: 94.08 | B114: 6.911097612e-12 | C114: 193.9595486 | D114: 0.4238176364 | E114: =central/ka1_turnover!V -> 0.3879190972 | F114: =ka1_turnover!Emax*AR/(ka1_turnover!Ke+AR) -> 4.065858126
A115: 94.92 | B115: 5.165524186e-12 | C115: 191.0489399 | D115: 0.4177642337 | E115: =central/ka1_turnover!V -> 0.3820978797 | F115: =ka1_turnover!Emax*AR/(ka1_turnover!Ke+AR) -> 4.010114112
A116: 95.76 | B116: 3.860839713e-12 | C116: 188.1820085 | D116: 0.4117930321 | E116: =central/ka1_turnover!V -> 0.376364017 | F116: =ka1_turnover!Emax*AR/(ka1_turnover!Ke+AR) -> 3.955063559
A117: 96.6 | B117: 2.885686477e-12 | C117: 185.3580991 | D117: 0.4059030362 | E117: =central/ka1_turnover!V -> 0.3707161982 | F117: =ka1_turnover!Emax*AR/(ka1_turnover!Ke+AR) -> 3.900699774
A118: 97.44 | B118: 2.156832985e-12 | C118: 182.576566 | D118: 0.4000932591 | E118: =central/ka1_turnover!V -> 0.365153132 | F118: =ka1_turnover!Emax*AR/(ka1_turnover!Ke+AR) -> 3.847016071
A119: 98.28 | B119: 1.612069974e-12 | C119: 179.8367734 | D119: 0.3943627224 | E119: =central/ka1_turnover!V -> 0.3596735467 | F119: =ka1_turnover!Emax*AR/(ka1_turnover!Ke+AR) -> 3.794005779
A120: 99.12 | B120: 1.204900713e-12 | C120: 177.1380948 | D120: 0.3887104563 | E120: =central/ka1_turnover!V -> 0.3542761896 | F120: =ka1_turnover!Emax*AR/(ka1_turnover!Ke+AR) -> 3.74166224
A121: 99.96 | B121: 9.005724018e-13 | C121: 174.4799133 | D121: 0.3831354996 | E121: =central/ka1_turnover!V -> 0.3489598266 | F121: =ka1_turnover!Emax*AR/(ka1_turnover!Ke+AR) -> 3.689978809
A122: 100.8 | B122: 6.731099435e-13 | C122: 171.8616212 | D122: 0.3776368998 | E122: =central/ka1_turnover!V -> 0.3437232423 | F122: =ka1_turnover!Emax*AR/(ka1_turnover!Ke+AR) -> 3.638948861
A123: 101.64 | B123: 5.030989126e-13 | C123: 169.2826198 | D123: 0.372213713 | E123: =central/ka1_turnover!V -> 0.3385652397 | F123: =ka1_turnover!Emax*AR/(ka1_turnover!Ke+AR) -> 3.58856579
A124: 102.48 | B124: 3.760284902e-13 | C124: 166.7423197 | D124: 0.3668650041 | E124: =central/ka1_turnover!V -> 0.3334846394 | F124: =ka1_turnover!Emax*AR/(ka1_turnover!Ke+AR) -> 3.53882301
A125: 103.32 | B125: 2.81052934e-13 | C125: 164.24014 | D125: 0.3615898468 | E125: =central/ka1_turnover!V -> 0.3284802799 | F125: =ka1_turnover!Emax*AR/(ka1_turnover!Ke+AR) -> 3.489713954
A126: 104.16 | B126: 2.100658694e-13 | C126: 161.7755086 | D126: 0.3563873233 | E126: =central/ka1_turnover!V -> 0.3235510172 | F126: =ka1_turnover!Emax*AR/(ka1_turnover!Ke+AR) -> 3.441232084
A127: 105 | B127: 1.570083929e-13 | C127: 159.3478622 | D127: 0.3512565248 | E127: =central/ka1_turnover!V -> 0.3186957244 | F127: =ka1_turnover!Emax*AR/(ka1_turnover!Ke+AR) -> 3.393370882
A128: 105.84 | B128: 1.173519311e-13 | C128: 156.9566457 | D128: 0.3461965511 | E128: =central/ka1_turnover!V -> 0.3139132913 | F128: =ka1_turnover!Emax*AR/(ka1_turnover!Ke+AR) -> 3.346123857
A129: 106.68 | B129: 8.771171708e-14 | C129: 154.6013124 | D129: 0.3412065108 | E129: =central/ka1_turnover!V -> 0.3092026247 | F129: =ka1_turnover!Emax*AR/(ka1_turnover!Ke+AR) -> 3.299484547
A130: 107.52 | B130: 6.555789275e-14 | C130: 152.2813238 | D130: 0.3362855213 | E130: =central/ka1_turnover!V -> 0.3045626477 | F130: =ka1_turnover!Emax*AR/(ka1_turnover!Ke+AR) -> 3.253446517
A131: =+A130+Tmax/MaxTimeSteps -> 108.36 | B131: 4.899958004e-14 | C131: 149.9961497 | D131: 0.3314327086 | E131: =central/ka1_turnover!V -> 0.2999922993 | F131: =ka1_turnover!Emax*AR/(ka1_turnover!Ke+AR) -> 3.208003362
A132: 109.2 | B132: 3.662349022e-14 | C132: 147.7452674 | D132: 0.3266472075 | E132: =central/ka1_turnover!V -> 0.2954905349 | F132: =ka1_turnover!Emax*AR/(ka1_turnover!Ke+AR) -> 3.163148706
A133: 110.04 | B133: 2.737329657e-14 | C133: 145.5281625 | D133: 0.3219281617 | E133: =central/ka1_turnover!V -> 0.2910563251 | F133: =ka1_turnover!Emax*AR/(ka1_turnover!Ke+AR) -> 3.118876208
A134: 110.88 | B134: 2.045947452e-14 | C134: 143.3443281 | D134: 0.3172747232 | E134: =central/ka1_turnover!V -> 0.2866886562 | F134: =ka1_turnover!Emax*AR/(ka1_turnover!Ke+AR) -> 3.075179557
A135: 111.72 | B135: 1.529191402e-14 | C135: 141.1932649 | D135: 0.3126860529 | E135: =central/ka1_turnover!V -> 0.2823865298 | F135: =ka1_turnover!Emax*AR/(ka1_turnover!Ke+AR) -> 3.032052477
A136: 112.56 | B136: 1.142955232e-14 | C136: 139.0744811 | D136: 0.3081613204 | E136: =central/ka1_turnover!V -> 0.2781489622 | F136: =ka1_turnover!Emax*AR/(ka1_turnover!Ke+AR) -> 2.989488725
A137: 113.4 | B137: 8.542728268e-15 | C137: 136.9874923 | D137: 0.3036997039 | E137: =central/ka1_turnover!V -> 0.2739749847 | F137: =ka1_turnover!Emax*AR/(ka1_turnover!Ke+AR) -> 2.947482095
A138: 114.24 | B138: 6.385045034e-15 | C138: 134.9318215 | D138: 0.29930039 | E138: =central/ka1_turnover!V -> 0.269863643 | F138: =ka1_turnover!Emax*AR/(ka1_turnover!Ke+AR) -> 2.906026416
A139: 115.08 | B139: 4.772339562e-15 | C139: 132.9069986 | D139: 0.2949625741 | E139: =central/ka1_turnover!V -> 0.2658139972 | F139: =ka1_turnover!Emax*AR/(ka1_turnover!Ke+AR) -> 2.865115555
A140: 115.92 | B140: 3.566963863e-15 | C140: 130.9125607 | D140: 0.29068546 | E140: =central/ka1_turnover!V -> 0.2618251214 | F140: =ka1_turnover!Emax*AR/(ka1_turnover!Ke+AR) -> 2.824743416
A141: 116.76 | B141: 2.666036445e-15 | C141: 128.9480519 | D141: 0.2864682601 | E141: =central/ka1_turnover!V -> 0.2578961038 | F141: =ka1_turnover!Emax*AR/(ka1_turnover!Ke+AR) -> 2.784903942
A142: 117.6 | B142: 1.992661153e-15 | C142: 127.013023 | D142: 0.2823101951 | E142: =central/ka1_turnover!V -> 0.2540260461 | F142: =ka1_turnover!Emax*AR/(ka1_turnover!Ke+AR) -> 2.745591114
A143: 118.44 | B143: 1.489363913e-15 | C143: 125.1070317 | D143: 0.2782104942 | E143: =central/ka1_turnover!V -> 0.2502140635 | F143: =ka1_turnover!Emax*AR/(ka1_turnover!Ke+AR) -> 2.706798954
A144: 119.28 | B144: 1.113187188e-15 | C144: 123.2296423 | D144: 0.274168395 | E144: =central/ka1_turnover!V -> 0.2464592845 | F144: =ka1_turnover!Emax*AR/(ka1_turnover!Ke+AR) -> 2.668521524
A145: 120.12 | B145: 8.320234591e-16 | C145: 121.3804254 | D145: 0.2701831435 | E145: =central/ka1_turnover!V -> 0.2427608507 | F145: =ka1_turnover!Emax*AR/(ka1_turnover!Ke+AR) -> 2.630752926
A146: 120.96 | B146: 6.218747792e-16 | C146: 119.5589583 | D146: 0.2662539939 | E146: =central/ka1_turnover!V -> 0.2391179167 | F146: =ka1_turnover!Emax*AR/(ka1_turnover!Ke+AR) -> 2.593487303
A147: 121.8 | B147: 4.648044918e-16 | C147: 117.7648247 | D147: 0.2623802085 | E147: =central/ka1_turnover!V -> 0.2355296494 | F147: =ka1_turnover!Emax*AR/(ka1_turnover!Ke+AR) -> 2.556718843
A148: 122.64 | B148: 3.474062991e-16 | C148: 115.9976143 | D148: 0.2585610582 | E148: =central/ka1_turnover!V -> 0.2319952287 | F148: =ka1_turnover!Emax*AR/(ka1_turnover!Ke+AR) -> 2.520441773
A149: 123.48 | B149: 2.59660005e-16 | C149: 114.2569232 | D149: 0.2547958217 | E149: =central/ka1_turnover!V -> 0.2285138464 | F149: =ka1_turnover!Emax*AR/(ka1_turnover!Ke+AR) -> 2.484650364
A150: 124.32 | B150: 1.940762685e-16 | C150: 112.5423533 | D150: 0.2510837859 | E150: =central/ka1_turnover!V -> 0.2250847067 | F150: =ka1_turnover!Emax*AR/(ka1_turnover!Ke+AR) -> 2.44933893
A151: 125.16 | B151: 1.450573723e-16 | C151: 110.8535128 | D151: 0.2474242459 | E151: =central/ka1_turnover!V -> 0.2217070255 | F151: =ka1_turnover!Emax*AR/(ka1_turnover!Ke+AR) -> 2.41450183
A152: 126 | B152: 1.084194446e-16 | C152: 109.1900154 | D152: 0.2438165047 | E152: =central/ka1_turnover!V -> 0.2183800308 | F152: =ka1_turnover!Emax*AR/(ka1_turnover!Ke+AR) -> 2.380133465
A153: 126.84 | B153: 8.103535719e-17 | C153: 107.5514809 | D153: 0.2402598731 | E153: =central/ka1_turnover!V -> 0.2151029618 | F153: =ka1_turnover!Emax*AR/(ka1_turnover!Ke+AR) -> 2.34622828
A154: 127.68 | B154: 6.05678173e-17 | C154: 105.9375347 | D154: 0.2367536701 | E154: =central/ka1_turnover!V -> 0.2118750693 | F154: =ka1_turnover!Emax*AR/(ka1_turnover!Ke+AR) -> 2.312780768
A155: 128.52 | B155: 4.526987503e-17 | C155: 104.3478078 | D155: 0.2332972224 | E155: =central/ka1_turnover!V -> 0.2086956155 | F155: =ka1_turnover!Emax*AR/(ka1_turnover!Ke+AR) -> 2.279785462
A156: 129.36 | B156: 3.383581704e-17 | C156: 102.7819367 | D156: 0.2298898644 | E156: =central/ka1_turnover!V -> 0.2055638735 | F156: =ka1_turnover!Emax*AR/(ka1_turnover!Ke+AR) -> 2.247236944
A157: 130.2 | B157: 2.528972113e-17 | C157: 101.2395636 | D157: 0.2265309384 | E157: =central/ka1_turnover!V -> 0.2024791271 | F157: =ka1_turnover!Emax*AR/(ka1_turnover!Ke+AR) -> 2.21512984
A158: 131.04 | B158: 1.890215903e-17 | C158: 99.72033568 | D158: 0.2232197943 | E158: =central/ka1_turnover!V -> 0.1994406714 | F158: =ka1_turnover!Emax*AR/(ka1_turnover!Ke+AR) -> 2.18345882
A159: 131.88 | B159: 1.412793816e-17 | C159: 98.22390572 | D159: 0.2199557897 | E159: =central/ka1_turnover!V -> 0.1964478114 | F159: =ka1_turnover!Emax*AR/(ka1_turnover!Ke+AR) -> 2.152218603
A160: 132.72 | B160: 1.055956815e-17 | C160: 96.74993159 | D160: 0.2167382897 | E160: =central/ka1_turnover!V -> 0.1934998632 | F160: =ka1_turnover!Emax*AR/(ka1_turnover!Ke+AR) -> 2.12140395
A161: 133.56 | B161: 7.892480726e-18 | C161: 95.29807631 | D161: 0.2135666669 | E161: =central/ka1_turnover!V -> 0.1905961526 | F161: =ka1_turnover!Emax*AR/(ka1_turnover!Ke+AR) -> 2.091009672
A162: 134.4 | B162: 5.899034042e-18 | C162: 93.86800796 | D162: 0.2104403013 | E162: =central/ka1_turnover!V -> 0.1877360159 | F162: =ka1_turnover!Emax*AR/(ka1_turnover!Ke+AR) -> 2.061030622
A163: =+A162+Tmax/MaxTimeSteps -> 135.24 | B163: 4.409083004e-18 | C163: 92.4593996 | D163: 0.2073585805 | E163: =central/ka1_turnover!V -> 0.1849187992 | F163: =ka1_turnover!Emax*AR/(ka1_turnover!Ke+AR) -> 2.031461703
A164: 136.08 | B164: 3.295456985e-18 | C164: 91.07192918 | D164: 0.2043208993 | E164: =central/ka1_turnover!V -> 0.1821438584 | F164: =ka1_turnover!Emax*AR/(ka1_turnover!Ke+AR) -> 2.002297863
A165: 136.92 | B165: 2.463105532e-18 | C165: 89.70527952 | D165: 0.2013266596 | E165: =central/ka1_turnover!V -> 0.179410559 | F165: =ka1_turnover!Emax*AR/(ka1_turnover!Ke+AR) -> 1.973534094
A166: 137.76 | B166: 1.840985602e-18 | C166: 88.35913817 | D166: 0.198375271 | E166: =central/ka1_turnover!V -> 0.1767182763 | F166: =ka1_turnover!Emax*AR/(ka1_turnover!Ke+AR) -> 1.945165437
A167: 138.6 | B167: 1.375997879e-18 | C167: 87.03319737 | D167: 0.1954661496 | E167: =central/ka1_turnover!V -> 0.1740663947 | F167: =ka1_turnover!Emax*AR/(ka1_turnover!Ke+AR) -> 1.917186981
A168: 139.44 | B168: 1.028454628e-18 | C168: 85.727154 | D168: 0.1925987192 | E168: =central/ka1_turnover!V -> 0.171454308 | F168: =ka1_turnover!Emax*AR/(ka1_turnover!Ke+AR) -> 1.889593857
A169: 140.28 | B169: 7.686922619e-19 | C169: 84.44070946 | D169: 0.1897724103 | E169: =central/ka1_turnover!V -> 0.1688814189 | F169: =ka1_turnover!Emax*AR/(ka1_turnover!Ke+AR) -> 1.862381245
A170: 141.12 | B170: 5.745394861e-19 | C170: 83.17356965 | D170: 0.1869866604 | E170: =central/ka1_turnover!V -> 0.1663471393 | F170: =ka1_turnover!Emax*AR/(ka1_turnover!Ke+AR) -> 1.835544373
A171: 141.96 | B171: 4.294249305e-19 | C171: 81.92544488 | D171: 0.1842409139 | E171: =central/ka1_turnover!V -> 0.1638508898 | F171: =ka1_turnover!Emax*AR/(ka1_turnover!Ke+AR) -> 1.809078511
A172: 142.8 | B172: 3.209627456e-19 | C172: 80.6960498 | D172: 0.1815346222 | E172: =central/ka1_turnover!V -> 0.1613920996 | F172: =ka1_turnover!Emax*AR/(ka1_turnover!Ke+AR) -> 1.782978981
A173: 143.64 | B173: 2.398954433e-19 | C173: 79.48510335 | D173: 0.1788672433 | E173: =central/ka1_turnover!V -> 0.1589702067 | F173: =ka1_turnover!Emax*AR/(ka1_turnover!Ke+AR) -> 1.757241145
A174: 144.48 | B174: 1.793037494e-19 | C174: 78.29232869 | D174: 0.1762382421 | E174: =central/ka1_turnover!V -> 0.1565846574 | F174: =ka1_turnover!Emax*AR/(ka1_turnover!Ke+AR) -> 1.731860417
A175: 145.32 | B175: 1.340160285e-19 | C175: 77.11745312 | D175: 0.1736470899 | E175: =central/ka1_turnover!V -> 0.1542349062 | F175: =ka1_turnover!Emax*AR/(ka1_turnover!Ke+AR) -> 1.706832253
A176: 146.16 | B176: 1.00166873e-19 | C176: 75.96020805 | D176: 0.1710932648 | E176: =central/ka1_turnover!V -> 0.1519204161 | F176: =ka1_turnover!Emax*AR/(ka1_turnover!Ke+AR) -> 1.682152157
A177: 147 | B177: 7.486718232e-20 | C177: 74.82032891 | D177: 0.1685762514 | E177: =central/ka1_turnover!V -> 0.1496406578 | F177: =ka1_turnover!Emax*AR/(ka1_turnover!Ke+AR) -> 1.657815679
A178: 147.84 | B178: 5.595757183e-20 | C178: 73.69755509 | D178: 0.1660955408 | E178: =central/ka1_turnover!V -> 0.1473951102 | F178: =ka1_turnover!Emax*AR/(ka1_turnover!Ke+AR) -> 1.633818413
A179: 148.68 | B179: 4.182406427e-20 | C179: 72.59162992 | D179: 0.1636506304 | E179: =central/ka1_turnover!V -> 0.1451832598 | F179: =ka1_turnover!Emax*AR/(ka1_turnover!Ke+AR) -> 1.610156
A180: 149.52 | B180: 3.126033341e-20 | C180: 71.50230056 | D180: 0.1612410241 | E180: =central/ka1_turnover!V -> 0.1430046011 | F180: =ka1_turnover!Emax*AR/(ka1_turnover!Ke+AR) -> 1.586824126
A181: 150.36 | B181: 2.336474137e-20 | C181: 70.42931797 | D181: 0.1588662319 | E181: =central/ka1_turnover!V -> 0.1408586359 | F181: =ka1_turnover!Emax*AR/(ka1_turnover!Ke+AR) -> 1.563818524
A182: 151.2 | B182: 1.746338186e-20 | C182: 69.37243684 | D182: 0.1565257702 | E182: =central/ka1_turnover!V -> 0.1387448737 | F182: =ka1_turnover!Emax*AR/(ka1_turnover!Ke+AR) -> 1.541134968
A183: 152.04 | B183: 1.305256074e-20 | C183: 68.33141554 | D183: 0.1542191614 | E183: =central/ka1_turnover!V -> 0.1366628311 | F183: =ka1_turnover!Emax*AR/(ka1_turnover!Ke+AR) -> 1.518769282
A184: 152.88 | B184: 9.755804647e-21 | C184: 67.3060161 | D184: 0.1519459342 | E184: =central/ka1_turnover!V -> 0.1346120322 | F184: =ka1_turnover!Emax*AR/(ka1_turnover!Ke+AR) -> 1.49671733
A185: 153.72 | B185: 7.291728129e-21 | C185: 66.29600407 | D185: 0.149705623 | E185: =central/ka1_turnover!V -> 0.1325920081 | F185: =ka1_turnover!Emax*AR/(ka1_turnover!Ke+AR) -> 1.474975025
A186: 154.56 | B186: 5.450016788e-21 | C186: 65.30114854 | D186: 0.1474977686 | E186: =central/ka1_turnover!V -> 0.1306022971 | F186: =ka1_turnover!Emax*AR/(ka1_turnover!Ke+AR) -> 1.45353832
A187: 155.4 | B187: 4.073476475e-21 | C187: 64.32122209 | D187: 0.1453219174 | E187: =central/ka1_turnover!V -> 0.1286424442 | F187: =ka1_turnover!Emax*AR/(ka1_turnover!Ke+AR) -> 1.432403216
A188: 156.24 | B188: 3.044616418e-21 | C188: 63.35600068 | D188: 0.1431776218 | E188: =central/ka1_turnover!V -> 0.1267120014 | F188: =ka1_turnover!Emax*AR/(ka1_turnover!Ke+AR) -> 1.411565756
A189: 157.08 | B189: 2.275621128e-21 | C189: 62.40526363 | D189: 0.14106444 | E189: =central/ka1_turnover!V -> 0.1248105273 | F189: =ka1_turnover!Emax*AR/(ka1_turnover!Ke+AR) -> 1.391022025
A190: 157.92 | B190: 1.700855151e-21 | C190: 61.4687936 | D190: 0.1389819357 | E190: =central/ka1_turnover!V -> 0.1229375872 | F190: =ka1_turnover!Emax*AR/(ka1_turnover!Ke+AR) -> 1.370768156
A191: 158.76 | B191: 1.271260936e-21 | C191: 60.54637649 | D191: 0.1369296785 | E191: =central/ka1_turnover!V -> 0.121092753 | F191: =ka1_turnover!Emax*AR/(ka1_turnover!Ke+AR) -> 1.35080032
A192: 159.6 | B192: 9.501716635e-22 | C192: 59.63780141 | D192: 0.1349072436 | E192: =central/ka1_turnover!V -> 0.1192756028 | F192: =ka1_turnover!Emax*AR/(ka1_turnover!Ke+AR) -> 1.331114734
A193: 160.44 | B193: 7.101816505e-22 | C193: 58.74286065 | D193: 0.1329142117 | E193: =central/ka1_turnover!V -> 0.1174857213 | F193: =ka1_turnover!Emax*AR/(ka1_turnover!Ke+AR) -> 1.311707658
A194: 161.28 | B194: 5.308072174e-22 | C194: 57.86134962 | D194: 0.130950169 | E194: =central/ka1_turnover!V -> 0.1157226992 | F194: =ka1_turnover!Emax*AR/(ka1_turnover!Ke+AR) -> 1.292575393
A195: =+A194+Tmax/MaxTimeSteps -> 162.12 | B195: 3.967383582e-22 | C195: 56.99306677 | D195: 0.1290147069 | E195: =central/ka1_turnover!V -> 0.1139861335 | F195: =ka1_turnover!Emax*AR/(ka1_turnover!Ke+AR) -> 1.273714282
A196: 162.96 | B196: 2.965319982e-22 | C196: 56.13781361 | D196: 0.1271074227 | E196: =central/ka1_turnover!V -> 0.1122756272 | F196: =ka1_turnover!Emax*AR/(ka1_turnover!Ke+AR) -> 1.255120711
A197: 163.8 | B197: 2.216353024e-22 | C197: 55.29539461 | D197: 0.1252279184 | E197: =central/ka1_turnover!V -> 0.1105907892 | F197: =ka1_turnover!Emax*AR/(ka1_turnover!Ke+AR) -> 1.236791106
A198: 164.64 | B198: 1.656556714e-22 | C198: 54.46561716 | D198: 0.1233758017 | E198: =central/ka1_turnover!V -> 0.1089312343 | F198: =ka1_turnover!Emax*AR/(ka1_turnover!Ke+AR) -> 1.218721937
A199: 165.48 | B199: 1.238151196e-22 | C199: 53.64829159 | D199: 0.1215506852 | E199: =central/ka1_turnover!V -> 0.1072965832 | F199: =ka1_turnover!Emax*AR/(ka1_turnover!Ke+AR) -> 1.200909712
A200: 166.32 | B200: 9.254246295e-23 | C200: 52.84323101 | D200: 0.1197521868 | E200: =central/ka1_turnover!V -> 0.105686462 | F200: =ka1_turnover!Emax*AR/(ka1_turnover!Ke+AR) -> 1.183350982
... 2 more rows
